bitfinex/quotes_BTCUSD_20250326
["timestamp","ask_amount","ask_price","bid_price","bid_amount"]
[1743010075700,0.0001692,86826.0,86825.0,0.23055755]
[1743010075906,0.01821289,86826.0,86825.0,0.00020955]
[1743010076108,0.01821289,86826.0,86825.0,0.23055755]
[1743010076316,0.01821289,86826.0,86825.0,0.24207455]
[1743010079684,0.01821289,86826.0,86825.0,0.23055755]
[1743010079885,0.01821289,86826.0,86825.0,0.00020955]
[1743010080091,0.54855789,86826.0,86825.0,0.00020955]
[1743010080302,0.64267489,86826.0,86825.0,0.00020955]
[1743010080507,4.11249189,86826.0,86825.0,0.00020955]
[1743010080715,3.41897689,86826.0,86825.0,0.00020955]
[1743010080930,3.37277889,86826.0,86825.0,0.00020955]
[1743010082397,3.42127889,86826.0,86825.0,0.00020955]
[1743010082815,3.4032352,86826.0,86825.0,0.00020955]
[1743010085006,3.4032352,86826.0,86807.0,0.0003384]
[1743010085007,0.669412,86808.0,86807.0,0.0003384]
[1743010085248,5.777754,86808.0,86807.0,0.00075446]
[1743010085614,5.79580304,86808.0,86807.0,0.00075446]
[1743010086020,5.50840604,86808.0,86807.0,0.00075446]
[1743010086375,0.97486304,86808.0,86807.0,0.00075446]
[1743010086590,0.31804904,86808.0,86807.0,0.25656971]
[1743010086813,0.43812104,86808.0,86807.0,0.02617371]
[1743010087179,0.43812104,86808.0,86807.0,0.00075446]
[1743010087389,0.68203304,86808.0,86807.0,0.00075446]
[1743010087773,0.68503304,86808.0,86807.0,0.00075446]
[1743010088158,0.68003304,86808.0,86807.0,0.00075446]
[1743010090059,0.68103304,86808.0,86807.0,0.00075446]
[1743010090581,0.68965071,86808.0,86807.0,0.00075446]
[1743010090828,0.56957871,86808.0,86807.0,0.00075446]
[1743010091081,3.57281771,86808.0,86807.0,0.00075446]
[1743010091334,1.69375571,86808.0,86807.0,0.00075446]
[1743010091580,1.32790571,86808.0,86807.0,0.00075446]
[1743010091815,1.33942471,86808.0,86807.0,0.00075446]
[1743010093005,1.32137567,86808.0,86807.0,0.00075446]
[1743010094009,0.98447867,86808.0,86807.0,0.00075446]
[1743010094294,0.75408567,86808.0,86807.0,0.23115046]
[1743010094553,0.61188767,86808.0,86807.0,0.23115046]
[1743010095061,0.84228067,86808.0,86807.0,0.00075446]
[1743010095328,0.61188767,86808.0,86807.0,0.00075446]
[1743010095592,0.61188767,86808.0,86807.0,0.23115046]
[1743010095853,0.62993557,86808.0,86807.0,0.23115046]
[1743010096428,0.3190479,86808.0,86807.0,0.31647321]
[1743010096712,0.0190479,86808.0,86807.0,0.24266946]
[1743010097381,0.0180479,86808.0,86807.0,0.24266946]
[1743010097947,0.0180479,86808.0,86807.0,0.24466946]
[1743010102771,0.0085453,86817.0,86816.0,0.24189]
[1743010102946,0.3,86820.0,86818.0,0.230365]
[1743010103340,0.3,86818.0,86815.0,0.24189]
[1743010103536,0.3,86818.0,86816.0,0.230371]
[1743010103739,0.3,86818.0,86817.0,0.230369]
[1743010104069,0.3,86818.0,86816.0,0.230371]
[1743010104329,0.3,86816.0,86810.0,0.241904]
[1743010104504,2.076135,86815.0,86812.0,0.23038]
[1743010104733,0.28816394,86819.0,86812.0,0.241896]
[1743010104734,0.3,86813.0,86812.0,0.241896]
[1743010105773,0.01804666,86813.0,86812.0,0.241896]
[1743010108008,0.530393,86808.0,86807.0,0.00075446]
[1743010108219,4.529448,86808.0,86807.0,0.00075446]
[1743010108455,5.511654,86808.0,86807.0,0.00075446]
[1743010108662,5.587554,86808.0,86807.0,0.00075446]
[1743010111115,0.541954,86793.0,86792.0,0.0003384]
[1743010111268,5.56624,86793.0,86792.0,0.00075318]
[1743010111473,5.64644,86793.0,86792.0,0.00075318]
[1743010111731,5.64644,86793.0,86763.0,0.495299]
[1743010111732,0.541968,86788.0,86787.0,0.46641527]
[1743010111927,5.51171,86788.0,86787.0,0.46682921]
[1743010112136,5.51171,86788.0,86787.0,0.18131115]
[1743010112343,5.65051729,86788.0,86787.0,0.17106826]
[1743010112540,5.65051729,86788.0,86787.0,0.13643582]
[1743010112920,5.65051729,86788.0,86787.0,0.10180338]
[1743010113344,5.65051729,86788.0,86787.0,0.06716136]
[1743010113527,5.65251729,86788.0,86787.0,0.06716136]
[1743010113732,5.65251729,86788.0,86787.0,0.03251934]
[1743010114020,5.65751729,86788.0,86787.0,3.4e-07]
[1743010114239,0.542043,86761.0,86759.0,0.0003386]
[1743010114455,5.205333,86761.0,86760.0,0.00075188]
[1743010114705,4.988812,86761.0,86760.0,0.00075188]
[1743010114917,4.322673,86761.0,86760.0,0.00075188]
[1743010115135,4.179934,86761.0,86760.0,0.00075188]
[1743010115353,0.863261,86761.0,86760.0,0.00075188]
[1743010116015,0.87498763,86761.0,86760.0,0.00075188]
[1743010116403,0.89304464,86761.0,86760.0,0.00075188]
[1743010116646,0.89292464,86761.0,86760.0,0.00075188]
[1743010117580,0.89292464,86761.0,86760.0,0.00175188]
[1743010119052,0.90162411,86761.0,86760.0,0.00175188]
[1743010119809,0.58920911,86761.0,86760.0,0.01327788]
[1743010120047,0.52851964,86761.0,86760.0,0.01327788]
[1743010120242,0.32978364,86761.0,86760.0,0.01327788]
[1743010122141,0.31805701,86761.0,86760.0,0.01327788]
[1743010122638,0.3,86761.0,86760.0,0.01327788]
[1743010123365,0.3,86761.0,86760.0,0.24379788]
[1743010124056,0.58827048,86770.0,86769.0,0.242021]
[1743010124321,0.3,86770.0,86769.0,0.242021]
[1743010125072,0.31165,86770.0,86769.0,0.242021]
[1743010125555,0.31465,86770.0,86769.0,0.242021]
[1743010125796,0.33270476,86770.0,86769.0,0.242021]
[1743010126064,0.33070476,86770.0,86769.0,0.242021]
[1743010127550,0.32970476,86770.0,86769.0,0.242021]
[1743010130245,0.3,86769.0,86768.0,0.230499]
[1743010130488,1.156906,86769.0,86766.0,0.242027]
[1743010130737,1.091886,86768.0,86767.0,0.011525]
[1743010130966,0.3,86768.0,86767.0,0.242027]
[1743010133749,0.3,86768.0,86767.0,0.243027]
[1743010135596,0.27664594,86779.0,86767.0,0.243027]
[1743010135597,0.13576,86788.0,86785.0,0.230452]
[1743010135796,0.13576,86788.0,86784.0,0.011522]
[1743010135797,0.530449,86787.0,86784.0,0.230456]
[1743010136014,0.3,86785.0,86783.0,0.230459]
[1743010136226,0.3,86785.0,86779.0,0.241991]
[1743010136227,0.3,86783.0,86781.0,0.230464]
[1743010136433,0.3,86783.0,86782.0,0.230462]
[1743010136850,0.3,86783.0,86781.0,0.230464]
[1743010137050,0.3,86783.0,86781.0,0.241987]
[1743010137254,0.3,86783.0,86782.0,0.230462]
[1743010137675,0.3,86785.0,86784.0,0.230457]
[1743010137875,2.602688,86785.0,86781.0,0.241987]
[1743010138162,0.3,86783.0,86782.0,0.230462]
[1743010138284,0.3,86783.0,86782.0,0.241985]
[1743010139739,0.31159674,86787.0,86785.0,0.230454]
[1743010139913,1.259515,86786.0,86785.0,0.230454]
[1743010140204,0.3,86785.0,86784.0,0.230457]
[1743010140407,0.879476,86785.0,86784.0,0.230457]
[1743010140979,0.879476,86785.0,86783.0,0.241981]
[1743010141187,0.3,86785.0,86783.0,0.230459]
[1743010141605,0.30870617,86785.0,86784.0,0.230457]
[1743010141993,2.03825117,86785.0,86783.0,0.230459]
[1743010142194,0.30870617,86785.0,86782.0,0.241985]
[1743010142440,0.00970617,86785.0,86783.0,0.230458]
[1743010142644,0.54016017,86785.0,86782.0,0.011523]
[1743010142868,0.54016017,86785.0,86782.0,0.241985]
[1743010143161,0.53916017,86785.0,86782.0,0.241985]
[1743010143493,0.3,86783.0,86782.0,0.230462]
[1743010143693,0.3,86783.0,86781.0,0.241983]
[1743010143694,0.3,86783.0,86781.0,0.241987]
[1743010144409,0.3,86783.0,86782.0,0.230462]
[1743010144639,0.00970617,86785.0,86782.0,0.230462]
[1743010144877,0.3,86784.0,86783.0,0.230457]
[1743010145340,0.530459,86784.0,86780.0,0.24199]
[1743010145564,0.3,86784.0,86780.0,0.011523]
[1743010145802,0.31805334,86784.0,86781.0,0.241986]
[1743010146013,0.31805334,86784.0,86782.0,0.23046]
[1743010146231,0.54851034,86784.0,86782.0,0.23046]
[1743010146535,0.54851034,86784.0,86781.0,0.241986]
[1743010146756,0.54851034,86784.0,86782.0,0.230461]
[1743010147305,0.31805334,86784.0,86782.0,0.230461]
[1743010147791,0.54851034,86784.0,86782.0,0.230461]
[1743010147975,0.31805334,86784.0,86783.0,0.230459]
[1743010148200,0.31805334,86784.0,86782.0,0.230461]
[1743010148408,0.31805334,86784.0,86783.0,0.241981]
[1743010148619,0.01805334,86784.0,86783.0,0.318281]
[1743010150685,0.01805334,86784.0,86783.0,0.319281]
[1743010151081,0.01805334,86784.0,86783.0,0.320281]
[1743010152436,0.01176614,86787.0,86786.0,0.241973]
[1743010154111,0.0001694,86787.0,86786.0,0.242973]
[1743010154495,0.0001694,86787.0,86786.0,0.291973]
[1743010155113,0.0001694,86787.0,86786.0,0.371473]
[1743010155318,0.0001694,86787.0,86786.0,0.91677049]
[1743010155743,8.8e-07,86787.0,86786.0,0.91677049]
[1743010156143,0.0001694,86808.0,86807.0,0.241915]
[1743010156867,0.01821632,86808.0,86807.0,0.241915]
[1743010157477,0.01821632,86808.0,86807.0,0.24232828]
[1743010157906,0.01821632,86808.0,86807.0,0.26585788]
[1743010158111,0.01821632,86808.0,86807.0,0.28624378]
[1743010158460,0.01921632,86808.0,86807.0,0.28624378]
[1743010159045,0.01821632,86808.0,86807.0,0.28624378]
[1743010159469,0.01821632,86808.0,86807.0,0.28724378]
[1743010159824,0.01821632,86808.0,86807.0,0.26685788]
[1743010160028,0.01821632,86808.0,86807.0,0.26885788]
[1743010160443,0.01821632,86808.0,86807.0,0.68535688]
[1743010162791,0.0001694,86808.0,86807.0,0.68535688]
[1743010163016,0.0001694,86808.0,86807.0,0.66182728]
[1743010163460,0.0001694,86808.0,86807.0,0.65030828]
[1743010163958,0.0001694,86808.0,86807.0,0.41991228]
[1743010164194,0.5420814,86808.0,86807.0,0.41991228]
[1743010164667,0.3001694,86808.0,86807.0,0.65030828]
[1743010164905,0.3001694,86808.0,86807.0,0.41991228]
[1743010165369,0.5305624,86808.0,86807.0,0.41991228]
[1743010165669,2.2780544,86808.0,86807.0,0.41991228]
[1743010165911,1.2690784,86808.0,86807.0,0.41991228]
[1743010166149,0.8813294,86808.0,86807.0,0.41991228]
[1743010166384,0.7528734,86808.0,86807.0,0.00341328]
[1743010166640,0.6447734,86808.0,86807.0,0.00341328]
[1743010167133,0.3001694,86808.0,86807.0,0.23380928]
[1743010167372,0.3001694,86808.0,86807.0,0.24532828]
[1743010179001,0.0001694,86808.0,86807.0,0.24532828]
[1743010179760,0.0001694,86808.0,86807.0,0.29382828]
[1743010179971,0.0001694,86808.0,86807.0,0.48718592]
[1743010180431,0.0001694,86808.0,86807.0,0.37292828]
[1743010181595,0.0001694,86808.0,86807.0,0.24532828]
[1743010185659,0.5420814,86808.0,86807.0,0.00341328]
[1743010186847,0.56012794,86808.0,86807.0,0.00041328]
[1743010187314,0.56012794,86808.0,86807.0,0.00341328]
[1743010187767,0.54860894,86808.0,86807.0,0.00241328]
[1743010188014,0.54860894,86808.0,86807.0,0.00041328]
[1743010188514,0.54860894,86808.0,86807.0,0.00141328]
[1743010188733,0.31821594,86808.0,86807.0,0.00141328]
[1743010188948,0.56012794,86808.0,86807.0,0.00141328]
[1743010189549,1.60156294,86808.0,86807.0,0.00141328]
[1743010190790,1.53449994,86808.0,86807.0,0.00141328]
[1743010190989,1.20769594,86808.0,86807.0,0.00141328]
[1743010191239,0.46948494,86808.0,86807.0,0.23180928]
[1743010191439,0.46948494,86808.0,86807.0,0.00141328]
[1743010191649,0.69987794,86808.0,86807.0,0.00141328]
[1743010192466,0.70865005,86808.0,86807.0,0.00141328]
[1743010192670,0.69060351,86808.0,86807.0,0.00141328]
[1743010193110,0.67545751,86808.0,86807.0,0.00141328]
[1743010195050,0.44506451,86808.0,86807.0,0.23180928]
[1743010195263,0.44506451,86808.0,86807.0,0.00141328]
[1743010195805,0.46311106,86808.0,86807.0,0.00141328]
[1743010196624,0.46311106,86808.0,86807.0,0.23180928]
[1743010197695,0.46311106,86808.0,86807.0,0.24332828]
[1743010197696,0.31821595,86808.0,86807.0,0.24332828]
[1743010200378,0.31821595,86808.0,86807.0,0.00141328]
[1743010200902,0.54860895,86808.0,86807.0,0.00141328]
[1743010201151,2.55405895,86808.0,86807.0,0.00141328]
[1743010202651,2.55705895,86808.0,86807.0,0.00141328]
[1743010202908,2.6721724,86808.0,86807.0,0.00141328]
[1743010203396,1.4904944,86808.0,86807.0,0.00141328]
[1743010203579,1.0468814,86808.0,86807.0,0.00141328]
[1743010203783,1.0468814,86808.0,86807.0,0.23080928]
[1743010203784,0.8164884,86808.0,86807.0,0.23080928]
[1743010204035,0.5747734,86808.0,86807.0,0.23080928]
[1743010204258,0.0051694,86808.0,86807.0,0.24232828]
[1743010205692,0.0021694,86808.0,86807.0,0.24232828]
[1743010206066,0.0031694,86808.0,86807.0,0.24232828]
[1743010206441,0.0011694,86808.0,86807.0,0.24232828]
[1743010207266,0.01921615,86808.0,86807.0,0.24232828]
[1743010208548,0.01921615,86808.0,86807.0,0.31892828]
[1743010208750,0.01921615,86808.0,86807.0,0.73542728]
[1743010209002,0.01921615,86808.0,86807.0,0.78332728]
[1743010209250,0.01821615,86808.0,86807.0,0.78332728]
[1743010209484,0.01821615,86808.0,86807.0,0.98727715]
[1743010209964,0.01821615,86808.0,86807.0,0.99027715]
[1743010210500,0.01821615,86808.0,86807.0,0.98827715]
[1743010210744,0.01821615,86808.0,86807.0,0.91412577]
[1743010210984,0.01821615,86808.0,86807.0,0.91712577]
[1743010211723,0.0001692,86825.0,86824.0,0.241868]
[1743010211968,0.0001692,86825.0,86824.0,0.97884885]
[1743010212227,0.0001692,86825.0,86824.0,1.09310649]
[1743010212683,0.0001692,86825.0,86824.0,0.97884885]
[1743010213185,0.0001692,86825.0,86824.0,0.97984885]
[1743010214429,0.0001692,86825.0,86824.0,0.887808]
[1743010214904,0.0001692,86825.0,86824.0,0.9108974]
[1743010215673,0.0001692,86825.0,86824.0,0.8528804]
[1743010215925,0.0001692,86825.0,86824.0,0.8643974]
[1743010216710,0.5305172,86825.0,86824.0,0.59944]
[1743010216986,0.5305172,86825.0,86824.0,0.001]
[1743010216987,1.6323422,86825.0,86824.0,0.001]
[1743010218815,1.6343422,86825.0,86824.0,0.001]
[1743010219056,1.6343422,86825.0,86810.0,0.230387]
[1743010219057,0.230379,86814.0,86810.0,0.230387]
[1743010219555,0.241912,86808.0,86807.0,0.00041328]
[1743010219805,0.541912,86808.0,86807.0,0.00041328]
[1743010220055,5.644654,86808.0,86807.0,0.00041328]
[1743010222079,5.645654,86808.0,86807.0,0.00041328]
[1743010222571,5.644654,86808.0,86807.0,0.00041328]
[1743010222824,3.546144,86808.0,86807.0,0.00041328]
[1743010223064,2.16429,86808.0,86807.0,0.00041328]
[1743010223271,0.895858,86808.0,86807.0,0.00041328]
[1743010223485,0.302,86808.0,86807.0,0.01193228]
[1743010223704,0.303,86808.0,86807.0,0.01193228]
[1743010223912,0.003,86808.0,86807.0,0.01193228]
[1743010224367,0.233393,86808.0,86807.0,0.00041328]
[1743010224581,0.003,86808.0,86807.0,0.00041328]
[1743010224758,0.001,86808.0,86807.0,0.00041328]
[1743010225194,0.001,86808.0,86807.0,0.01193228]
[1743010225442,0.01904743,86808.0,86807.0,0.00041328]
[1743010225901,0.01904743,86808.0,86807.0,0.01193228]
[1743010226167,0.01904743,86808.0,86807.0,0.00041328]
[1743010226420,0.01904743,86808.0,86807.0,0.01193228]
[1743010226687,0.01804743,86808.0,86807.0,0.01193228]
[1743010226949,0.01804743,86808.0,86807.0,0.01293228]
[1743010229512,0.01804743,86808.0,86807.0,0.24332828]
[1743010229909,0.3,86818.0,86816.0,0.230372]
[1743010230525,0.3,86816.0,86814.0,0.241894]
[1743010230693,0.3,86816.0,86813.0,0.230379]
[1743010230893,0.3,86816.0,86814.0,0.230377]
[1743010232358,0.011518,86817.0,86804.0,0.01152]
[1743010232708,0.3,86812.0,86810.0,0.230386]
[1743010232834,0.3,86812.0,86811.0,0.230385]
[1743010233728,0.011519,86812.0,86807.0,0.00041328]
[1743010233928,0.3,86808.0,86807.0,0.00041328]
[1743010234064,0.828167,86808.0,86807.0,0.00041328]
[1743010234716,0.90528,86808.0,86807.0,0.00041328]
[1743010235805,0.69293354,86808.0,86807.0,0.00041328]
[1743010236016,0.31804654,86808.0,86807.0,0.23080928]
[1743010236731,0.31804654,86808.0,86807.0,0.24332828]
[1743010236964,0.3,86808.0,86807.0,0.24332828]
[1743010237896,0.3,86808.0,86807.0,0.00141328]
[1743010238383,0.530393,86808.0,86807.0,0.00141328]
[1743010238609,0.3,86808.0,86807.0,0.23180928]
[1743010239109,0.3,86808.0,86807.0,0.00141328]
[1743010239339,0.3,86808.0,86807.0,0.24332828]
[1743010240074,0.0086461,86822.0,86819.0,0.241882]
[1743010240315,0.0086461,86822.0,86821.0,0.241876]
[1743010240558,0.0001692,86825.0,86824.0,0.241868]
[1743010241033,0.00878145,86825.0,86824.0,0.241868]
[1743010241256,0.01821248,86825.0,86824.0,0.241868]
[1743010241477,0.011517,86823.0,86814.0,0.230376]
[1743010241734,0.011518,86819.0,86815.0,0.230369]
[1743010242000,0.241882,86819.0,86815.0,0.230369]
[1743010242213,0.3,86817.0,86815.0,0.230369]
[1743010242437,0.3,86817.0,86816.0,0.230372]
[1743010243245,0.3,86817.0,86815.0,0.230369]
[1743010243491,0.3,86819.0,86816.0,0.230372]
[1743010243716,0.3,86819.0,86817.0,0.230368]
[1743010244203,0.31804411,86819.0,86817.0,0.230369]
[1743010244432,0.54840811,86819.0,86816.0,0.231372]
[1743010244664,0.011518,86818.0,86813.0,0.23038]
[1743010244897,0.011518,86816.0,86811.0,0.230383]
[1743010245122,0.230376,86815.0,86811.0,0.230383]
[1743010245372,0.011518,86816.0,86813.0,0.23038]
[1743010245373,0.230372,86816.0,86813.0,0.23038]
[1743010246989,0.230372,86816.0,86813.0,0.230379]
[1743010247191,0.230372,86816.0,86813.0,0.231379]
[1743010247765,0.230377,86815.0,86813.0,0.001]
[1743010248208,0.530377,86814.0,86813.0,0.001]
[1743010248448,0.541895,86814.0,86813.0,0.001]
[1743010249591,0.541895,86814.0,86813.0,0.002]
[1743010250014,0.541895,86814.0,86813.0,0.001]
[1743010250261,0.541895,86814.0,86813.0,0.002]
[1743010250718,0.530377,86814.0,86813.0,0.001]
[1743010250938,0.530377,86814.0,86813.0,0.002]
[1743010252707,0.541895,86814.0,86813.0,0.002]
[1743010255845,0.5599408,86814.0,86813.0,0.002]
[1743010259274,2.5398678,86814.0,86813.0,0.002]
[1743010259995,2.6179678,86814.0,86813.0,0.002]
[1743010260234,0.541909,86809.0,86808.0,0.0003388]
[1743010260494,4.446938,86809.0,86808.0,0.0003388]
[1743010260676,4.524538,86809.0,86808.0,0.0003388]
[1743010261188,4.524538,86809.0,86787.0,0.0003388]
[1743010261189,0.011522,86788.0,86787.0,0.0003388]
[1743010261397,5.116925,86788.0,86787.0,0.00074887]
[1743010261612,5.171672,86788.0,86787.0,0.00074887]
[1743010261827,5.025474,86788.0,86787.0,0.00074887]
[1743010262041,5.04352694,86788.0,86787.0,0.00074887]
[1743010262262,0.230503,86767.0,86765.0,0.59844]
[1743010262474,0.230505,86766.0,86763.0,0.230512]
[1743010262675,0.230505,86766.0,86760.0,0.0118646]
[1743010262676,0.242023,86769.0,86765.0,0.00041395]
[1743010262905,0.3,86772.0,86766.0,0.011525]
[1743010263128,0.3,86772.0,86771.0,0.242015]
[1743010263571,0.3,86772.0,86762.0,0.230515]
[1743010263572,0.230505,86766.0,86762.0,0.230515]
[1743010263791,2.208256,86766.0,86760.0,0.0003386]
[1743010264009,2.208256,86766.0,86765.0,0.00141395]
[1743010264463,2.208256,86766.0,86765.0,0.00041395]
[1743010265988,2.257056,86766.0,86765.0,0.00041395]
[1743010266215,2.27511316,86766.0,86765.0,0.00041395]
[1743010266432,2.27511316,86766.0,86765.0,0.00141395]
[1743010266830,2.27511316,86766.0,86765.0,0.00041395]
[1743010267949,2.27811316,86766.0,86765.0,0.00041395]
[1743010268393,2.28211316,86766.0,86765.0,0.00041395]
[1743010269248,0.542043,86761.0,86760.0,0.0003386]
[1743010269457,0.542043,86761.0,86760.0,0.00075313]
[1743010269678,4.837111,86761.0,86760.0,0.00075313]
[1743010270318,0.542043,86761.0,86760.0,0.00075313]
[1743010270528,4.934749,86761.0,86760.0,0.00075313]
[1743010270952,4.844721,86761.0,86760.0,0.00075313]
[1743010271347,4.978241,86761.0,86760.0,0.00075313]
[1743010271587,3.54037,86761.0,86760.0,0.00075313]
[1743010272446,3.40685,86761.0,86760.0,0.00075313]
[1743010272652,3.474358,86761.0,86760.0,0.00075313]
[1743010273810,3.340878,86761.0,86760.0,0.00075313]
[1743010274002,3.095414,86761.0,86760.0,0.00075313]
[1743010275011,3.11347193,86761.0,86760.0,0.00075313]
[1743010280440,3.13602951,86761.0,86760.0,0.00075313]
[1743010280906,0.72105851,86761.0,86760.0,0.00075313]
[1743010281153,5.69080051,86761.0,86760.0,0.00075313]
[1743010281403,5.55740051,86761.0,86760.0,0.00075313]
[1743010281639,5.55540051,86761.0,86760.0,0.00075313]
[1743010281876,5.68892051,86761.0,86760.0,0.00075313]
[1743010282479,0.542077,86749.0,86748.0,0.0003386]
[1743010282739,4.539647,86749.0,86748.0,0.00075365]
[1743010283940,4.675087,86749.0,86748.0,0.00075365]
[1743010284601,4.676087,86749.0,86748.0,0.00075365]
[1743010286247,4.674087,86749.0,86748.0,0.00075365]
[1743010286677,4.541647,86749.0,86748.0,0.00075365]
[1743010286940,4.674967,86749.0,86748.0,0.00075365]
[1743010287399,4.69302876,86749.0,86748.0,0.00075365]
[1743010287656,4.69402876,86749.0,86748.0,0.00075365]
[1743010289565,4.75849507,86749.0,86748.0,0.00075365]
[1743010289783,4.76714487,86749.0,86748.0,0.00075365]
[1743010289995,4.73958587,86749.0,86748.0,0.00075365]
[1743010291923,0.76957487,86749.0,86748.0,0.00075365]
[1743010292128,5.73931687,86749.0,86748.0,0.00075365]
[1743010292821,5.72125511,86749.0,86748.0,0.00075365]
[1743010293107,0.542104,86739.0,86738.0,0.0003384]
[1743010293338,5.511846,86739.0,86738.0,0.00075036]
[1743010293554,5.486901,86739.0,86738.0,0.00075036]
[1743010293784,5.277099,86739.0,86738.0,0.00075036]
[1743010294034,4.575481,86739.0,86738.0,0.00075036]
[1743010294259,1.340231,86739.0,86738.0,0.00075036]
[1743010294474,1.473271,86739.0,86738.0,0.00075036]
[1743010294697,1.340231,86739.0,86738.0,0.00075036]
[1743010294924,1.473311,86739.0,86738.0,0.00075036]
[1743010295849,1.49137295,86739.0,86738.0,0.00075036]
[1743010297304,1.35829295,86739.0,86738.0,0.00075036]
[1743010297566,1.49121295,86739.0,86738.0,0.00075036]
[1743010298050,0.80276995,86739.0,86738.0,0.00075036]
[1743010298265,1.04487395,86739.0,86738.0,0.07625036]
[1743010298505,1.04487395,86739.0,86738.0,0.00075036]
[1743010299757,1.06841616,86739.0,86738.0,0.00075036]
[1743010301675,1.04487395,86739.0,86738.0,0.00075036]
[1743010302745,1.026812,86739.0,86738.0,0.00075036]
[1743010303213,0.542104,86739.0,86738.0,0.00075036]
[1743010303449,0.899554,86739.0,86738.0,0.00075036]
[1743010304141,0.542104,86739.0,86738.0,0.00075036]
[1743010304373,0.3,86739.0,86738.0,0.24285736]
[1743010305858,0.3180605,86739.0,86738.0,0.24285736]
[1743010306263,0.3180605,86739.0,86738.0,0.36895736]
[1743010308317,0.5486365,86739.0,86738.0,0.00075036]
[1743010308524,0.3180605,86739.0,86738.0,0.00075036]
[1743010308741,0.3180605,86739.0,86738.0,0.23132936]
[1743010309379,0.3180605,86739.0,86738.0,0.00075036]
[1743010309623,0.5601645,86739.0,86738.0,0.00075036]
[1743010310628,0.7225645,86739.0,86738.0,0.00075036]
[1743010312694,2.613303,86739.0,86738.0,0.00075036]
[1743010313993,2.549936,86739.0,86738.0,0.00075036]
[1743010315749,2.56799747,86739.0,86738.0,0.00075036]
[1743010317929,2.51100747,86739.0,86738.0,0.00075036]
[1743010318178,2.48388347,86739.0,86738.0,0.00075036]
[1743010319110,0.31806147,86739.0,86738.0,0.00075036]
[1743010319566,0.31806147,86739.0,86738.0,0.23132936]
[1743010319791,0.31806147,86739.0,86738.0,0.24285736]
[1743010321766,0.3,86739.0,86738.0,0.24285736]
[1743010321916,0.3,86739.0,86738.0,0.23132936]
[1743010322825,0.3,86739.0,86738.0,0.24285736]
[1743010323530,0.3,86739.0,86738.0,0.00075036]
[1743010323752,0.542104,86739.0,86738.0,0.00075036]
[1743010323964,0.3,86739.0,86738.0,0.23132936]
[1743010324173,0.3,86739.0,86738.0,0.00075036]
[1743010325088,0.530576,86739.0,86738.0,0.00075036]
[1743010325517,0.3,86739.0,86738.0,0.23132936]
[1743010325758,0.3,86739.0,86738.0,0.24285736]
[1743010326450,0.31806024,86739.0,86738.0,0.32105736]
[1743010328630,0.01806024,86739.0,86738.0,0.32105736]
[1743010329080,0.01806024,86739.0,86738.0,0.24285736]
[1743010329555,0.01806024,86739.0,86738.0,0.00075036]
[1743010329719,0.01806024,86739.0,86738.0,0.23132936]
[1743010329848,0.01806024,86739.0,86738.0,0.00075036]
[1743010330262,0.01806024,86739.0,86738.0,0.23132936]
[1743010330470,0.01806024,86739.0,86738.0,0.24285736]
[1743010330666,0.01806024,86739.0,86738.0,0.00075036]
[1743010331082,0.01806024,86739.0,86738.0,0.24285736]
[1743010331987,0.01806024,86739.0,86738.0,0.23132936]
[1743010332655,0.011528,86743.0,86738.0,0.23132936]
[1743010332858,0.530571,86741.0,86738.0,0.23132936]
[1743010333457,0.3,86739.0,86738.0,0.00075036]
[1743010333687,0.230571,86741.0,86738.0,0.23132936]
[1743010334252,0.3,86742.0,86741.0,0.230571]
[1743010334471,0.3,86742.0,86740.0,0.242101]
[1743010334715,0.3,86742.0,86741.0,0.230571]
[1743010334936,0.530566,86743.0,86740.0,0.242101]
[1743010335398,0.230569,86742.0,86739.0,0.230571]
[1743010335616,0.230569,86742.0,86740.0,0.230573]
[1743010335836,0.230569,86742.0,86739.0,0.230576]
[1743010336434,0.530576,86739.0,86738.0,0.00075036]
[1743010336644,0.542104,86739.0,86738.0,0.00075036]
[1743010336870,0.3,86739.0,86738.0,0.00075036]
[1743010337097,0.530576,86739.0,86738.0,0.00075036]
[1743010337352,0.542104,86739.0,86738.0,0.00075036]
[1743010337640,3.440899,86739.0,86738.0,0.00075036]
[1743010337851,2.962205,86739.0,86738.0,0.00075036]
[1743010338073,2.913084,86739.0,86738.0,0.00075036]
[1743010338292,2.728189,86739.0,86738.0,0.00075036]
[1743010338516,2.572175,86739.0,86738.0,0.00075036]
[1743010338989,0.542104,86739.0,86738.0,0.00075036]
[1743010339520,0.915698,86739.0,86738.0,0.00075036]
[1743010341782,0.542133,86729.0,86728.0,0.0003384]
[1743010341977,0.24218,86712.0,86702.0,0.1304]
[1743010342302,0.54218,86712.0,86702.0,0.07181601]
[1743010342557,2.862012,86712.0,86702.0,0.07181601]
[1743010342810,2.47012047,86712.0,86711.0,0.00241326]
[1743010343040,2.11350941,86712.0,86711.0,0.00241326]
[1743010343303,1.34135641,86712.0,86711.0,0.00241326]
[1743010344106,1.13316141,86712.0,86711.0,0.00241326]
[1743010344372,0.72908741,86712.0,86711.0,0.00241326]
[1743010345912,0.74715447,86712.0,86711.0,0.00241326]
[1743010346693,0.76865705,86712.0,86711.0,0.00241326]
[1743010346943,0.59355005,86712.0,86711.0,0.00241326]
[1743010347210,3.17690105,86712.0,86711.0,0.00241326]
[1743010347453,2.93484505,86712.0,86711.0,0.00241326]
[1743010347713,2.16808305,86712.0,86711.0,0.00241326]
[1743010347976,1.33814189,86712.0,86711.0,0.00241326]
[1743010348222,1.01173289,86712.0,86711.0,0.00241326]
[1743010348709,0.97735605,86712.0,86711.0,0.00241326]
[1743010348913,0.65149905,86712.0,86711.0,0.00241326]
[1743010349135,0.75728905,86712.0,86711.0,0.00241326]
[1743010350057,0.7657792,86712.0,86711.0,0.00241326]
[1743010352384,0.3598602,86712.0,86711.0,0.24459626]
[1743010352626,0.33330299,86712.0,86711.0,0.29299626]
[1743010355217,0.02150258,86712.0,86711.0,0.29316576]
[1743010355659,0.02150258,86712.0,86711.0,0.30770661]
[1743010356303,0.02150258,86716.0,86715.0,0.242172]
[1743010357381,0.02150258,86716.0,86715.0,0.321472]
[1743010358172,0.02150258,86716.0,86715.0,0.322472]
[1743010359311,0.02150258,86716.0,86715.0,0.33701285]
[1743010359722,0.02150258,86716.0,86715.0,0.75351185]
[1743010360428,0.01806561,86717.0,86716.0,0.25670885]
[1743010361707,0.02023688,86731.0,86730.0,0.24213]